bitfinex/quotes_SOLUSD_20241225
["timestamp","ask_amount","ask_price","bid_price","bid_amount"]
[1735111941415,15.15948043,199.15,199.1,1.6184]
[1735111942145,15.15948043,199.15,199.11,23.776884]
[1735111944827,15.15948043,199.15,199.1,1.6184]
[1735111945186,15.15948043,199.13,199.06,23.776884]
[1735111945472,15.15948043,199.11,199.05,8.1838]
[1735111945801,7.5315,199.17,199.05,8.1838]
[1735111945802,15.15948043,199.12,199.05,8.1838]
[1735111947141,15.15948043,199.12,199.06,23.776884]
[1735111947308,7.7558,199.19,199.06,23.776884]
[1735111947309,15.15948043,199.1,199.06,23.776884]
[1735111949350,15.15948043,199.12,199.06,23.776884]
[1735111955446,15.15948043,199.15,199.08,23.776884]
[1735111955653,15.15948043,199.15,199.08,38.93636443]
[1735111955853,15.15948043,199.15,199.08,23.776884]
[1735111956225,9.69817599,199.14,199.08,23.776884]
[1735111957243,9.69817599,199.13,199.08,23.776884]
[1735111958155,9.69817599,199.14,199.08,23.776884]
[1735111967587,9.69817599,199.14,199.07,122.5]
[1735111967760,9.69817599,199.12,199.07,122.5]
[1735111967965,9.69817599,199.12,199.05,8.1838]
[1735111969078,9.69817599,199.12,199.06,23.776884]
[1735111969252,38.79270396,199.2,199.05,1.5628]
[1735111969253,9.69817599,199.09,199.05,1.5628]
[1735111969576,9.69817599,199.08,199.05,1.5628]
[1735111969877,9.69817599,199.07,199.0,139.92057599]
[1735111970263,9.69817599,199.06,199.0,7.7224]
[1735111970644,9.69817599,199.04,199.0,1.5354]
[1735111971072,9.69817599,199.05,199.0,1.5354]
[1735111971490,9.69817599,199.02,198.95,17.42057599]
[1735111971852,9.69817599,199.03,198.95,17.42057599]
[1735111972179,9.69817599,199.03,198.96,9.69817599]
[1735111973660,9.69817599,199.03,198.97,23.776884]
[1735111974659,9.69817599,199.03,198.96,23.776884]
[1735111974993,9.69817599,199.01,198.96,23.776884]
[1735111975210,9.69817599,198.98,198.9,138.38517599]
[1735111975692,7.5365,199.04,198.9,138.38517599]
[1735111975693,9.69817599,198.96,198.9,6.187]
[1735111976067,9.69817599,198.95,198.9,6.187]
[1735111976380,9.69817599,198.96,198.9,6.187]
[1735111976877,9.69817599,198.95,198.91,23.776884]
[1735111977087,9.69817599,198.95,198.9,23.776884]
[1735111978375,15.0723,199.04,198.89,1.5354]
[1735111978376,9.69817599,198.93,198.89,1.5354]
[1735111978565,9.69817599,198.93,198.85,138.38517599]
[1735111978872,20.0,198.96,198.85,138.38517599]
[1735111978873,9.69817599,198.92,198.85,138.38517599]
[1735111979180,9.69817599,198.92,198.85,15.88517599]
[1735111979385,9.69817599,198.91,198.85,6.187]
[1735111979587,20.0,198.97,198.87,9.69817599]
[1735111979795,7.6536,199.05,198.91,9.69817599]
[1735111979990,7.6536,199.05,198.92,9.69817599]
[1735111979991,9.69817599,199.0,198.92,9.69817599]
[1735111980163,9.69817599,199.0,198.93,9.69817599]
[1735111980580,9.69817599,199.0,198.94,23.776884]
[1735111980769,9.69817599,199.02,198.94,33.47505999]
[1735111980997,9.69817599,199.01,198.94,33.47505999]
[1735111981272,9.69817599,199.01,198.94,23.776884]
[1735111981859,9.69817599,198.98,198.93,23.776884]
[1735111982066,9.69817599,198.97,198.93,23.776884]
[1735111982387,9.69817599,198.99,198.93,23.776884]
[1735111985403,20.0,199.05,198.93,153.1976309]
[1735111985685,9.69817599,199.06,198.99,23.776884]
[1735111985894,9.69817599,199.06,199.0,9.69817599]
[1735111986073,9.69817599,199.06,199.01,23.776884]
[1735111986269,9.69817599,199.06,198.99,23.776884]
[1735111986458,9.69817599,199.06,198.99,147.03051848]
[1735111986661,9.69817599,199.06,199.01,23.776884]
[1735111989992,9.69817599,199.08,199.03,23.776884]
[1735111990238,9.69817599,199.1,199.03,23.776884]
[1735111991680,7.5316,199.16,199.04,9.69817599]
[1735111991878,46.45050396,199.2,199.04,9.69817599]
[1735111991879,9.69817599,199.12,199.05,23.776884]
[1735111992067,9.69817599,199.12,199.05,24.5302136]
[1735111992269,15.15783645,199.11,199.05,23.776884]
[1735111994491,15.15783645,199.09,199.05,23.776884]
[1735111994903,15.15783645,199.09,199.04,122.5]
[1735111995239,15.15783645,199.05,199.0,1.5322]
[1735111996712,15.15783645,199.07,199.0,124.78576738]
[1735111996914,15.15783645,199.07,199.01,23.776884]
[1735112001300,15.15783645,199.05,199.0,1.5322]
[1735112001528,15.15783645,199.01,198.95,124.1484]
[1735112001910,15.15783645,199.0,198.95,1.6484]
[1735112003045,15.15783645,199.01,198.95,1.6484]
[1735112005134,15.15783645,199.03,198.96,146.276884]
[1735112005738,15.15783645,199.03,198.96,161.43472045]
[1735112007440,15.15783645,199.03,198.96,146.276884]
[1735112010713,15.15783645,199.08,198.96,146.276884]
[1735112010714,15.15783645,199.01,198.96,146.276884]
[1735112010919,15.15783645,199.01,198.96,122.5]
[1735112012946,15.15783645,199.01,198.95,124.1484]
[1735112013154,15.15783645,199.01,198.96,23.776884]
[1735112013620,15.15783645,199.01,198.95,124.1484]
[1735112013817,7.5362,199.04,198.95,124.1484]
[1735112013818,15.15783645,199.0,198.95,124.1484]
[1735112014041,15.15783645,198.99,198.95,1.6484]
[1735112014246,9.71356274,198.99,198.95,1.6484]
[1735112017145,9.71356274,199.0,198.95,1.6484]
[1735112017444,20.0,198.93,198.87,1.6442]
[1735112017640,9.71356274,198.89,198.87,1.6442]
[1735112018855,9.71356274,198.9,198.87,1.6442]
[1735112020059,20.0,198.95,198.88,33.49044674]
[1735112020289,9.71356274,198.96,198.88,34.24442742]
[1735112021336,9.71356274,198.97,198.9,155.99044674]
[1735112021661,9.71356274,198.98,198.91,23.776884]
[1735112021819,9.71356274,198.97,198.91,23.776884]
[1735112022019,9.71356274,198.96,198.91,23.776884]
[1735112022257,15.18131263,198.96,198.91,23.776884]
[1735112022553,15.18131263,198.97,198.91,23.776884]
[1735112023345,15.18131263,198.99,198.92,15.18131263]
[1735112023652,15.18131263,199.0,198.93,39.71205878]
[1735112024232,15.18131263,199.0,198.93,24.53074615]
[1735112024441,15.18131263,199.0,198.93,39.71205878]
[1735112025768,7.536,199.05,198.95,16.73261263]
[1735112025946,15.18131263,199.05,198.98,23.776884]
[1735112026148,15.18131263,199.05,198.98,146.276884]
[1735112026350,30.25131263,199.05,198.98,146.276884]
[1735112027139,15.07,199.05,198.99,15.18131263]
[1735112027336,15.07,199.05,199.0,23.776884]
[1735112031267,15.07,199.05,199.0,146.276884]
[1735112031579,30.25131263,199.05,199.0,122.5]
[1735112034142,30.25131263,199.05,198.98,23.776884]
[1735112037071,30.25131263,199.05,198.98,146.276884]
[1735112038054,15.07,199.05,199.03,23.776884]
[1735112039371,15.07,199.05,199.0,122.5]
[1735112039576,15.07,199.05,199.01,23.776884]
[1735112039748,15.18131263,199.04,199.01,23.776884]
[1735112040276,30.25131263,199.05,199.01,23.776884]
[1735112040681,30.25131263,199.05,199.0,122.5]
[1735112040682,15.18131263,199.03,199.0,122.5]
[1735112041158,30.25131263,199.05,199.0,122.5]
[1735112041475,30.25131263,199.05,199.01,23.776884]
[1735112042070,15.07,199.05,199.01,23.776884]
[1735112043186,9.70690818,199.04,198.99,122.5]
[1735112043351,9.70690818,199.02,198.96,122.5]
[1735112043554,9.70690818,199.0,198.96,122.5]
[1735112044057,9.70690818,199.0,198.95,1.5513]
[1735112044852,9.70690818,199.02,198.96,146.276884]
[1735112045960,9.70690818,199.04,198.97,10.46058438]
[1735112046179,15.07,199.05,199.0,146.276884]
[1735112047974,24.77690818,199.05,199.0,146.276884]
[1735112048273,9.70690818,199.03,199.0,122.5]
[1735112048376,15.07,199.05,199.0,122.5]
[1735112048571,24.77690818,199.05,199.0,122.5]
[1735112048868,9.70690818,199.03,199.0,122.5]
[1735112049595,9.70690818,199.01,198.95,1.5513]
[1735112049789,7.5361,199.04,198.87,9.74533085]
[1735112049790,9.70690818,198.99,198.91,132.20690818]
[1735112049968,9.70690818,198.97,198.91,122.5]
[1735112050168,15.18147326,198.97,198.91,122.5]
[1735112051593,15.18147326,198.97,198.91,137.68147326]
[1735112052589,15.18147326,198.99,198.91,137.68147326]
[1735112053498,15.18147326,198.99,198.92,24.53077666]
[1735112054972,15.18147326,198.99,198.92,23.776884]
[1735112055394,15.18147326,198.97,198.92,23.776884]
[1735112056495,16.7052,199.05,198.91,15.18147326]
[1735112056793,15.18147326,199.04,198.95,137.68147326]
[1735112057088,15.18147326,199.04,198.97,15.18147326]
[1735112057683,31.88667326,199.05,198.98,23.776884]
[1735112057868,30.25147326,199.05,198.98,23.776884]
[1735112058071,30.25147326,199.05,198.98,24.5304871]
[1735112058296,15.07,199.05,198.98,39.71196036]
[1735112058501,15.07,199.05,198.98,162.21196036]
[1735112058794,15.07,199.05,198.98,161.45835726]
[1735112060377,15.07,199.05,198.98,137.68147326]
[1735112060576,15.18147326,199.04,198.98,122.5]
[1735112060767,15.18147326,199.04,198.93,1.6372]
[1735112060768,15.18147326,199.0,198.93,124.1372]
[1735112061350,15.18147326,198.98,198.92,122.5]
[1735112061511,15.18147326,198.98,198.91,137.68147326]
[1735112061871,15.18147326,199.0,198.92,0.75385242]
[1735112062081,6.542,199.02,198.95,15.18147326]
[1735112062082,15.18147326,199.02,198.95,15.18147326]
[1735112062609,15.18147326,199.03,198.95,15.18147326]
[1735112062908,15.18147326,199.03,198.96,147.03058682]
[1735112063111,15.07,199.05,198.98,38.95835726]
[1735112063304,15.07,199.05,198.98,39.71194166]
[1735112066700,15.07,199.05,198.98,162.21194166]
[1735112066994,15.07,199.05,198.98,161.45835726]
[1735112067189,15.18147326,199.04,198.98,146.276884]
[1735112067392,15.18147326,199.04,198.98,122.5]
[1735112069398,15.07,199.05,198.98,137.68147326]
[1735112070479,15.18147326,199.04,198.98,122.5]
[1735112075607,15.18147326,199.02,198.98,122.5]
[1735112076176,15.18147326,199.02,198.95,23.776884]
[1735112079030,15.18147326,199.02,198.94,137.68147326]
[1735112080372,9.71153265,199.01,198.94,122.5]
[1735112080826,9.71153265,198.99,198.92,133.87203265]
[1735112081124,9.71153265,198.97,198.92,124.1605]
[1735112081630,9.71153265,198.97,198.92,122.5]
[1735112081793,9.71153265,198.99,198.9,132.21153265]
[1735112081993,7.5368,199.03,198.92,132.21153265]
[1735112081994,9.71153265,199.01,198.92,132.21153265]
[1735112082223,7.5368,199.03,198.92,132.21153265]
[1735112082224,9.71153265,199.02,198.94,9.71153265]
[1735112083623,9.71153265,199.0,198.94,23.776884]
[1735112085141,9.71153265,199.0,198.94,146.276884]
[1735112087138,9.71153265,199.02,198.94,146.276884]
[1735112087354,9.71153265,199.06,198.98,23.776884]
[1735112087637,9.71153265,199.06,198.99,9.71153265]
[1735112087824,19.42306565,199.06,198.99,9.71153265]
[1735112088024,11.32463265,199.08,199.0,24.53048989]
[1735112088222,9.71153265,199.08,199.0,24.53048989]
[1735112089123,19.42306565,199.08,199.0,24.53048989]
[1735112089446,9.711533,199.08,199.01,132.21153265]
[1735112089747,9.71153265,199.1,199.02,147.03035048]
[1735112089945,9.71153265,199.1,199.02,146.276884]
[1735112090146,9.0618,199.13,199.02,146.276884]
[1735112090457,15.16189798,199.1,199.02,161.43878198]
[1735112093041,15.16189798,199.1,199.02,137.66189798]
[1735112093542,9.0618,199.13,199.02,137.66189798]
[1735112093543,15.16189798,199.08,199.02,122.5]
[1735112097216,15.16189798,199.1,199.03,0.75346224]
[1735112097411,15.16189798,199.1,199.03,2.33516224]
[1735112097625,15.161898,199.09,199.04,38.93878198]
[1735112097925,15.16189798,199.12,199.04,38.93878198]
[1735112098130,30.32379598,199.12,199.04,39.69213279]
[1735112098738,15.16189798,199.1,199.03,124.0817]
[1735112099630,15.16189798,199.09,199.03,124.0817]
[1735112100644,22.694998,199.12,198.93,116.96590366]
[1735112100645,15.16189798,199.05,198.99,1.5817]
[1735112100853,15.16189798,199.02,198.96,122.5]
[1735112101053,15.16189798,199.01,198.96,122.5]
[1735112101229,15.16189798,198.99,198.94,124.0817]
[1735112101857,15.16189798,198.98,198.92,128.5699]
[1735112103681,15.16189798,198.97,198.9,15.16189798]
[1735112103865,15.16189798,198.95,198.89,1.5817]
[1735112104163,15.16189798,198.93,198.87,128.5699]
[1735112105661,15.16189798,198.91,198.85,122.5]
[1735112106843,15.16189798,198.9,198.84,124.0817]
[1735112107047,15.16189798,198.88,198.82,128.5699]
[1735112107259,15.16189798,198.88,198.82,122.5]
[1735112108234,15.16189798,198.87,198.8,137.66189798]
[1735112110466,15.16189798,198.85,198.74,135.0792]
[1735112110762,15.16189798,198.85,198.78,137.66189798]
[1735112111664,15.16189798,198.85,198.78,15.16189798]
[1735112112051,15.16189798,198.89,198.81,137.66189798]
[1735112112288,15.16189798,198.89,198.82,15.16189798]
[1735112113272,15.16189798,198.91,198.84,15.16189798]
[1735112114376,15.16189798,198.92,198.84,15.16189798]
[1735112114543,15.16189798,198.93,198.86,15.16189798]
[1735112114747,1.6384,198.94,198.86,137.66189798]
[1735112114748,15.16189798,198.94,198.86,137.66189798]
[1735112114962,15.16189798,198.93,198.86,137.66189798]
[1735112115398,15.16189798,198.91,198.86,122.5]
[1735112117900,15.161898,198.91,198.86,122.5]
[1735112118084,15.16189798,198.92,198.86,122.5]
[1735112118378,15.16189798,198.92,198.84,137.66189798]
[1735112118765,15.161898,198.92,198.84,137.66189798]
[1735112119067,8.61843257,198.99,198.86,15.16189798]
[1735112119068,15.16189798,198.94,198.86,15.16189798]
[1735112119372,15.16189798,198.94,198.87,24.53093568]
[1735112119537,7.5384,198.98,198.87,24.53093568]
[1735112119538,15.16189798,198.96,198.88,137.66189798]
[1735112119965,15.161898,198.95,198.88,137.66189798]
[1735112120261,15.16189798,198.96,198.88,137.66189798]
[1735112120445,15.16189798,198.95,198.88,122.5]
[1735112121456,15.161898,198.96,198.89,138.41588122]
[1735112121653,15.16189798,199.0,198.91,139.29059798]
[1735112121915,15.16189798,198.99,198.91,139.29059798]
[1735112122056,15.16189798,198.98,198.91,139.29059798]
[1735112122274,15.16189798,198.96,198.91,124.1287]
[1735112122481,15.16189798,198.95,198.89,129.1659]
[1735112122879,15.16189798,198.95,198.89,122.5]
[1735112124184,9.71773358,198.95,198.89,122.5]
[1735112124463,9.71773358,198.96,198.89,122.5]
[1735112124556,9.71773358,198.96,198.89,132.21773358]
[1735112125077,9.71773358,198.96,198.89,122.5]
[1735112126181,9.71773358,198.94,198.89,122.5]
[1735112126679,9.71773358,198.92,198.86,1.6287]
[1735112130187,9.71773358,198.93,198.86,124.1287]
[1735112131672,9.71773358,198.91,198.86,124.1287]
[1735112133189,9.71773358,198.91,198.86,1.6287]
[1735112133560,7.5393,198.96,198.86,2.3828573]
[1735112133760,9.71773358,198.94,198.86,2.3828573]
[1735112136187,9.71773358,198.94,198.86,124.8828573]
[1735112136486,9.717734,198.93,198.86,124.1287]
[1735112136731,9.717734,198.93,198.87,0.75404385]
[1735112138397,9.71773358,198.89,198.81,33.49461758]
[1735112138768,17.258134,198.93,198.8,124.1088]
[1735112138769,9.71773358,198.88,198.8,133.82653358]
[1735112138971,9.71773358,198.86,198.8,1.6088]
[1735112139283,9.71773358,198.82,198.76,122.5]
[1735112139592,9.71773358,198.81,198.76,122.5]
[1735112146390,9.71773358,198.81,198.69,30.0]
[1735112146391,9.71773358,198.77,198.7,124.0903]
[1735112146580,9.71773358,198.78,198.71,123.25462634]
[1735112146769,9.71773358,198.78,198.71,122.5]
[1735112146970,9.71773358,198.78,198.71,132.21773358]
[1735112147192,9.71773358,198.79,198.72,132.97235387]
[1735112147379,9.71773358,198.79,198.72,132.21773358]
[1735112148207,7.5445,198.83,198.73,34.24921776]
[1735112148498,9.71773358,198.82,198.75,9.71773358]
[1735112148665,9.71773358,198.84,198.76,132.97216456]
[1735112148866,9.71773358,198.85,198.77,9.71773358]
[1735112149896,9.71773358,198.84,198.76,122.5]
[1735112150094,9.71773358,198.84,198.76,132.21773358]
[1735112150701,9.71773358,198.84,198.77,0.75440231]
[1735112151688,9.71773358,198.82,198.77,122.5]
[1735112152306,9.71773358,198.8,198.74,122.5]
[1735112152679,9.71773358,198.79,198.74,122.5]
[1735112153089,9.71773358,198.8,198.74,122.5]
[1735112153678,9.71773358,198.79,198.74,122.5]
[1735112155199,9.71773358,198.78,198.74,122.5]
[1735112155597,9.71773358,198.78,198.72,23.776884]
[1735112157197,9.71773358,198.77,198.71,122.5]
[1735112157382,9.71773358,198.75,198.7,124.0903]
[1735112158501,9.71773358,198.74,198.7,124.0903]
[1735112159009,9.71773358,198.73,198.67,122.5]
[1735112159179,9.71773358,198.72,198.67,122.5]
[1735112162009,9.71773358,198.73,198.65,138.76640928]
[1735112163516,9.71773358,198.72,198.65,138.76640928]
[1735112163692,9.71773358,198.72,198.65,6.5486757]
[1735112164194,9.71773358,198.72,198.65,7.30357651]
[1735112164393,7.5469,198.76,198.67,9.71773358]
[1735112164590,9.71773358,198.76,198.68,132.97246736]
[1735112164802,9.71773358,198.75,198.68,132.21773358]
[1735112165006,9.71773358,198.75,198.68,122.5]
[1735112167007,9.71773358,198.76,198.68,122.5]
[1735112170818,9.71773358,198.76,198.69,0.75477059]
[1735112171115,6.79310358,198.8,198.7,23.776884]
[1735112171293,9.71773358,198.79,198.71,10.47233796]
[1735112171501,9.71773358,198.79,198.71,132.97233796]
[1735112171699,9.71773358,198.79,198.72,24.53147262]
[1735112174020,9.71773358,198.79,198.73,132.21773358]
[1735112174323,9.71773358,198.79,198.73,122.5]
[1735112175436,9.71773358,198.77,198.69,132.21773358]
[1735112175593,9.71773358,198.77,198.7,0.75464421]
[1735112177724,9.71773358,198.79,198.71,33.49461758]
[1735112177925,9.71773358,198.79,198.72,0.75458779]
[1735112178724,9.71773358,198.79,198.71,33.49461758]
[1735112179023,9.71773358,198.79,198.71,34.2492351]
[1735112179217,9.71773358,198.77,198.71,146.276884]
[1735112180308,9.71773358,198.79,198.72,0.75462044]
[1735112180501,9.71773358,198.8,198.73,33.49461758]
[1735112180701,9.71773358,198.8,198.74,0.75451146]
[1735112180899,20.0,198.77,198.74,0.75451146]
[1735112181132,29.71773358,198.75,198.65,127.5005757]
[1735112181448,9.71773358,198.7,198.65,127.5005757]
[1735112182201,9.71773358,198.7,198.65,5.0005757]
[1735112182419,9.71773358,198.68,198.65,5.0005757]
[1735112185814,9.71773358,198.66,198.65,5.0005757]
[1735112187432,9.71773358,198.68,198.65,5.0005757]
[1735112189844,9.71773358,198.66,198.65,5.0005757]
[1735112191420,20.0,198.71,198.65,5.0005757]
[1735112191731,22.6429,198.74,198.65,5.0005757]
[1735112191732,9.71773358,198.68,198.65,5.0005757]
[1735112192969,15.0954,198.67,198.65,5.0005757]
[1735112197156,9.71773358,198.66,198.65,5.0005757]
[1735112197531,22.6456,198.67,198.65,5.0005757]
[1735112197926,9.71773358,198.66,198.65,5.0005757]
[1735112198630,9.71773358,198.66,198.65,1.3067757]
[1735112198835,9.71773358,198.66,198.65,7.57e-05]
[1735112200771,29.1858,198.67,198.65,7.57e-05]
[1735112200772,22.6456,198.67,198.65,7.57e-05]
[1735112200937,15.0954,198.67,198.65,7.57e-05]
[1735112201129,9.71773358,198.66,198.65,7.57e-05]
[1735112201369,24.81313358,198.67,198.65,7.57e-05]
[1735112201658,9.71773358,198.66,198.65,7.57e-05]
[1735112202619,24.81313358,198.67,198.65,7.57e-05]
[1735112203531,9.71773358,198.66,198.65,7.57e-05]
[1735112205351,24.81313358,198.67,198.65,7.57e-05]
[1735112206955,15.0954,198.67,198.65,7.57e-05]
[1735112207359,15.0954,198.67,198.65,122.5000757]
[1735112209571,15.0954,198.67,198.65,7.57e-05]
[1735112209572,9.71773358,198.66,198.65,7.57e-05]
[1735112219154,11.7475596,198.66,198.65,7.57e-05]
[1735112221077,20.0,198.63,198.53,1.6195]
[1735112221303,9.71773358,198.57,198.53,1.6195]
[1735112222190,9.71773358,198.56,198.53,1.6195]
[1735112223781,9.71773358,198.57,198.53,1.6195]
[1735112226196,9.71773358,198.57,198.44,1.5762]
[1735112226357,9.71773358,198.48,198.44,1.5762]
[1735112226670,20.0,198.54,198.43,128.6124]
[1735112226671,9.71773358,198.47,198.43,122.5]
[1735112226899,20.0,198.54,198.39,1.5762]
[1735112226900,20.0,198.54,198.41,9.71773358]
[1735112227208,20.0,198.54,198.43,132.21773358]
[1735112227389,9.71773358,198.5,198.44,123.2556167]
[1735112227590,9.71773358,198.5,198.44,122.5]
[1735112228615,9.71773358,198.49,198.44,122.5]
[1735112229172,9.71773358,198.47,198.39,133.79393358]
[1735112229285,9.71773358,198.48,198.41,132.21773358]
[1735112229488,9.71773358,198.48,198.42,0.75571876]
[1735112230198,27.5553,198.54,198.43,23.776884]
[1735112230403,9.71773358,198.49,198.43,146.276884]
[1735112230612,9.71773358,198.48,198.43,146.276884]
[1735112231331,9.71773358,198.48,198.43,122.5]
[1735112232332,9.71773358,198.47,198.4,132.21773358]
[1735112232636,9.71773358,198.47,198.41,24.53268467]
[1735112233615,9.71773358,198.48,198.41,156.75041825]
[1735112233813,9.71773358,198.48,198.41,155.99461758]
[1735112234528,7.5562,198.52,198.41,155.99461758]
[1735112234818,9.71773358,198.56,198.48,9.71773358]
[1735112235028,9.71773358,198.56,198.49,9.71773358]
[1735112235409,9.71773358,198.57,198.5,123.25546577]
[1735112235613,9.71773358,198.57,198.5,122.5]
[1735112237231,9.71773358,198.56,198.5,122.5]
[1735112238052,7.5525,198.61,198.51,10.47315433]
[1735112238226,6.79310358,198.64,198.55,23.776884]
[1735112238421,9.71773358,198.61,198.55,23.776884]
[1735112238911,9.71773358,198.6,198.54,124.1327]
[1735112239816,9.71773358,198.57,198.54,1.6327]
[1735112240019,9.71773358,198.56,198.5,1.6327]
[1735112240200,9.71773358,198.56,198.5,2.38815722]
[1735112241217,9.71773358,198.58,198.51,33.49461758]
[1735112241410,9.71773358,198.58,198.53,23.776884]
[1735112242231,20.0,198.61,198.54,0.75529897]
[1735112242429,9.71773358,198.62,198.55,23.776884]
[1735112244625,9.71773358,198.6,198.55,23.776884]
[1735112247439,9.71773358,198.6,198.55,146.276884]
[1735112247808,9.71773358,198.58,198.51,132.21773358]
[1735112248033,9.71773358,198.58,198.52,0.75534119]
[1735112248347,7.5505,198.66,198.5,1.6327]
[1735112248348,9.71773358,198.55,198.5,1.6327]
[1735112251017,9.71773358,198.53,198.5,1.6327]
[1735112253847,9.71773358,198.55,198.5,1.6327]
[1735112254154,9.71773358,198.55,198.49,122.5]
[1735112254330,9.71773358,198.53,198.46,132.21773358]
[1735112255616,9.71773358,198.53,198.47,0.75556592]
[1735112257147,9.71773358,198.55,198.48,33.49461758]
[1735112257549,9.71773358,198.55,198.48,34.25010358]
[1735112258119,9.71773358,198.55,198.48,24.53237]
[1735112258843,19.43546658,198.55,198.48,24.53237]
[1735112259543,19.43546658,198.55,198.47,122.5]
[1735112259738,19.43546658,198.55,198.48,0.7555361]
[1735112261550,9.717733,198.55,198.48,10.47326968]
[1735112261725,9.71773358,198.57,198.5,9.71773358]
[1735112261928,9.71773358,198.55,198.45,124.0897]
[1735112262235,9.71773358,198.55,198.47,9.71773358]
[1735112262652,9.71773358,198.55,198.46,0.75556058]
[1735112262828,9.71773358,198.55,198.46,10.47329416]
[1735112263251,9.71773358,198.53,198.46,10.47329416]
[1735112264131,9.71773358,198.55,198.47,23.776884]
[1735112264334,9.71773358,198.55,198.48,0.75548223]
[1735112265228,9.71773358,198.55,198.47,24.53240983]
[1735112265455,9.71773358,198.55,198.47,147.03240983]
[1735112265661,9.71773358,198.55,198.47,146.276884]
[1735112269342,9.71773358,198.55,198.48,0.75555424]
[1735112269752,9.717734,198.56,198.49,23.776884]
[1735112270467,9.71773358,198.55,198.48,10.47328782]
[1735112271459,9.71773358,198.55,198.48,132.97328782]
[1735112271658,9.71773358,198.55,198.48,132.21773358]
[1735112271962,9.71773358,198.55,198.49,0.75546687]
[1735112273335,7.5522,198.62,198.5,155.99461758]
[1735112273537,9.71773358,198.59,198.52,146.276884]
[1735112273756,9.71773358,198.59,198.53,0.75532561]
[1735112273956,19.43546658,198.59,198.53,0.75532561]
[1735112275360,9.71773358,198.59,198.53,0.75532561]
[1735112277065,9.71773358,198.57,198.52,122.5]
[1735112277252,9.71773358,198.54,198.45,124.0897]
[1735112277462,9.71773358,198.52,198.45,122.5]
[1735112277755,9.71773358,198.52,198.44,130.27426126]
[1735112278156,9.71773358,198.52,198.44,122.5]
[1735112279458,9.71773358,198.52,198.45,24.53250441]
[1735112281071,9.71773358,198.5,198.44,122.5]
[1735112283574,9.71773358,198.5,198.43,132.21773358]
[1735112284167,9.71773358,198.5,198.43,122.5]
[1735112286178,9.71773358,198.48,198.4,1.6546]
[1735112286343,9.71773358,198.48,198.4,12.12814954]
[1735112287689,9.71773358,198.48,198.4,9.71773358]
[1735112288046,9.71773358,198.46,198.4,9.71773358]
[1735112292348,9.71773358,198.46,198.39,132.21773358]
[1735112292548,9.71773358,198.46,198.4,0.75583148]
[1735112292979,7.5555,198.53,198.41,9.71773358]
[1735112293150,9.71773358,198.48,198.42,0.75574293]
[1735112295274,7.5555,198.53,198.43,9.71773358]
[1735112295474,9.71773358,198.52,198.45,9.71773358]
[1735112295783,9.71773358,198.51,198.44,10.4733569]
[1735112296086,9.71773358,198.51,198.44,0.75562332]
[1735112296680,9.71773358,198.48,198.41,122.5]
[1735112297344,9.71773358,198.47,198.39,155.99461758]
[1735112297551,9.71773358,198.46,198.4,0.7557894]
[1735112297765,9.71773358,198.46,198.39,146.276884]
[1735112298216,9.71773358,198.46,198.39,155.99461758]
[1735112298402,9.71773358,198.46,198.4,0.75582373]
[1735112299020,9.71773358,198.46,198.39,155.99461758]
[1735112300805,9.71773358,198.47,198.4,0.75582911]
[1735112300985,19.43546658,198.47,198.4,0.75582911]
[1735112302292,19.43546658,198.47,198.39,155.99461758]
[1735112302492,9.71773358,198.46,198.39,155.99461758]
[1735112302813,9.71773358,198.46,198.4,0.75582338]
[1735112303920,9.71773358,198.43,198.35,124.1129]
[1735112304114,9.71773358,198.44,198.37,9.71773358]
[1735112304291,9.71773358,198.45,198.38,0.75588593]
[1735112305517,9.71773358,198.43,198.31,136.6997]
[1735112305735,9.71773358,198.43,198.36,9.71773358]
[1735112305932,9.71773358,198.43,198.37,0.75590098]
[1735112306100,9.71773358,198.44,198.37,10.47363456]
[1735112307412,9.71773358,198.45,198.37,10.47363456]
[1735112310600,9.71773358,198.45,198.37,132.97363456]
[1735112310819,9.71773358,198.45,198.37,132.21773358]
[1735112311634,9.71773358,198.45,198.38,9.71773358]
[1735112311814,9.71773358,198.45,198.38,10.47361476]
[1735112312007,9.71773358,198.46,198.39,23.776884]
[1735112312205,9.71773358,198.46,198.4,0.75580899]
[1735112313128,9.71773358,198.46,198.39,24.53269692]
[1735112313337,9.717733,198.47,198.44,9.71773358]
[1735112313627,9.717733,198.47,198.44,10.47337396]
[1735112314234,9.717733,198.47,198.44,0.75564038]
[1735112316848,9.717733,198.47,198.44,10.47337396]